[Event "8th Montevideo Open 2025"]
[Site "Montevideo"]
[Date "2025.02.06"]
[Round "6.20"]
[White "Durante, Aurelio"]
[Black "Silva, Juliana Figueira The"]
[Result "0-1"]
[Annotator "NA RC"]
[ECO "B50"]
[WhiteElo "1950"]
[BlackElo "1850"]
[PlyCount "150"]
[EventDate "2025.02.01"]
[EventType "swiss"]
[EventCountry "URU"]
[SourceTitle "playchess.com"]
[Source "ChessBase"]
[SourceQuality "1"]
[TimeControl "5400+30"]

1. e4 {[%emt 0:00:02]} c5 {[%emt 0:00:09]} 2. Nf3 {[%emt 0:00:08]} d6 {[%emt 0:00:06]} 3. c3 {[%emt 0:01:07]} Nf6 {[%emt 0:00:23]} 4. Be2 {[%emt 0:00:08]} g6 {[%emt 0:00:51]} 5. O-O {[%emt 0:00:21]} Bg7 {[%emt 0:00:14]} 6. Re1 {[%emt 0:00:20]} O-O {[%emt 0:00:20]} 7. Bf1 {[%emt 0:00:19]} Nc6 {[%emt 0:00:35]} 8. h3 {[%emt 0:01:00]} e5 {[%emt 0:02:03]} 9. d4 {[%emt 1:31:35]} cxd4 {[%emt 0:19:11]} 10. cxd4 {[%emt 0:00:00]} Nxd4 {[%emt 0:02:16]} 11. Nxd4 {[%emt 0:00:00]} exd4 {[%emt 0:00:03]} 12. Qxd4 {[%emt 0:00:00]} Re8 {[%emt 0:00:17]} 13. Qd3 {[%emt 0:00:00]} Bf5 {[%emt 0:11:27]} 14. Nc3 {[%emt 0:00:00]} d5 {[%emt 0:02:02]} 15. Bg5 {[%emt 0:00:00]} Bxe4 {[%emt 0:02:58]} 16. Qb5 {[%emt 0:00:00]} Re6 {[%emt 0:09:42]} 17. Rad1 {[%emt 0:00:00]} Qe8 {[%emt 0:07:50]} 18. Qxb7 {[%emt 0:00:00]} d4 {[%emt 0:05:17]} 19. Nxe4 {[%emt 0:00:00]} Nxe4 {[%emt 0:03:52]} 20. Bc1 {[%emt 0:00:00]} Re7 {[%emt 0:03:04]} 21. Qb4 {[%emt 0:00:00]} Rb8 {[%emt 0:01:48]} 22. Qa3 {[%emt 0:00:00]} Bf6 {[%emt 0:04:26]} 23. f3 {[%emt 0:00:00]} Nc3 {[%emt 0:03:30]} 24. Bd2 {[%emt 0:00:00]} Nxd1 {[%emt 0:00:59]} 25. Rxd1 {[%emt 0:00:00]} Qc6 {[%emt 0:02:15]} 26. Bd3 {[%emt 0:00:00]} Ree8 {[%emt 0:03:49]} 27. b3 {[%emt 0:00:00]} Qc7 {[%emt 0:03:50]} 28. f4 {[%emt 0:00:00]} Bh4 {[%emt 0:01:17]} 29. Rc1 {[%emt 0:00:00]} Qb6 {[%emt 0:01:03]} 30. Rf1 {[%emt 0:00:00]} Rb7 {[%emt 0:02:25]} 31. Kh2 {[%emt 0:00:00]} Rbe7 {[%emt 0:01:37]} 32. Qc1 {[%emt 0:00:00]} Qb7 {[%emt 0:03:33]} 33. Qd1 {[%emt 0:00:00]} Bf6 {[%emt 0:01:45]} 34. Qg4 {[%emt 0:00:00]} Qc7 {[%emt 0:01:09]} 35. Bc4 {[%emt 0:00:00]} Kh8 {[%emt 0:00:54]} 36. Kh1 {[%emt 0:00:00]} d3 {[%emt 0:00:50]} 37. f5 {[%emt 0:00:00]} Qe5 {[%emt 0:00:31]} 38. fxg6 {[%emt 0:00:00]} fxg6 {[%emt 0:00:13]} 39. Bxd3 {[%emt 0:00:00]} Rd8 {[%emt 0:00:45]} 40. Bf4 {[%emt 0:00:00]} Qd5 {[%emt 0:00:35]} 41. Bc4 {[%emt 0:00:00]} Qe4 {[%emt 0:00:28]} 42. Qg3 {[%emt 0:01:50]} Be5 {[%emt 0:00:32]} 43. Bxe5+ {[%emt 0:04:22]} Rxe5 {[%emt 0:00:04]} 44. Qc3 {[%emt 0:01:40]} Qd4 {[%emt 0:00:58]} 45. Rf8+ {[%emt 0:03:04]} Kg7 {[%emt 0:00:08]} 46. Rf7+ {[%emt 0:00:32]} Kh6 {[%emt 0:00:24]} 47. Qxd4 {[%emt 0:02:08]} Rxd4 {[%emt 0:00:10]} 48. Rxa7 {[%emt 0:00:33]} Re1+ {[%emt 0:00:39]} 49. Kh2 {[%emt 0:00:02]} Ra1 {[%emt 0:00:37]} 50. Bg8 {[%emt 0:00:20]} Rd2 {[%emt 0:00:16]} 51. Rxh7+ {[%emt 0:00:18]} Kg5 {[%emt 0:00:03]} 52. h4+ {[%emt 0:01:00]} Kf4 {[%emt 0:00:58]} 53. b4 {[%emt 0:00:24]} Rdd1 {[%emt 0:00:13]} 54. g3+ {[%emt 0:01:39]} Kf3 {[%emt 0:00:03]} 55. Rf7+ {[%emt 0:00:25]} Kg4 {[%emt 0:00:09]} 56. Rf4+ {[%emt 0:00:30]} Kh5 {[%emt 0:00:02]} 57. Rf2 {[%emt 0:01:10]} Rab1 {[%emt 0:02:08]} 58. Bb3 {[%emt 0:00:21]} Re1 {[%emt 0:00:34]} 59. Kh3 {[%emt 0:00:43]} Re3 {[%emt 0:00:42]} 60. Rd2 {[%emt 0:00:47]} Rg1 {[%emt 0:00:41]} 61. Rd5+ {[%emt 0:01:09]} Kh6 {[%emt 0:00:11]} 62. Rg5 {[%emt 0:00:06]} Re4 {[%emt 0:00:36]} 63. Bf7 {[%emt 0:00:38]} Rxb4 {[%emt 0:00:19]} 64. Rxg6+ {[%emt 0:00:30]} Kh7 {[%emt 0:00:03]} 65. Rg5 {[%emt 0:00:30]} Rf1 {[%emt 0:00:16]} 66. Bb3 {[%emt 0:00:24]} Rf2 {[%emt 0:00:19]} 67. Re5 {[%emt 0:00:32]} Rd4 {[%emt 0:00:19]} 68. h5 {[%emt 0:00:46]} Kh6 {[%emt 0:00:07]} 69. Bd5 {[%emt 0:01:21]} Rb4 {[%emt 0:00:56]} 70. Bb3 {[%emt 0:00:47]} Rd4 {[%emt 0:00:07]} 71. Bd5 {[%emt 0:00:49]} Rb4 {[%emt 0:00:05]} 72. Bg8 {[%emt 0:00:44]} Rd4 {[%emt 0:01:07]} 73. Ra5 {[%emt 0:00:21]} Rd3 {[%emt 0:00:35]} 74. Bd5 {[%emt 0:00:47]} Rdd2 {[%emt 0:01:06]} 75. g4 {[%emt 0:00:28]} Rd3+ {[%emt 0:02:11]} 0-1

[Event "8th Montevideo Open 2025"]
[Site "Montevideo"]
[Date "2025.02.06"]
[Round "6.21"]
[White "Rey Besada, Fernando"]
[Black "Izquierdo, Sebastian"]
[Result "1/2-1/2"]
[Annotator "NA RC"]
[ECO "B01"]
[WhiteElo "2135"]
[BlackElo "1970"]
[PlyCount "93"]
[EventDate "2025.02.01"]
[EventType "swiss"]
[EventCountry "URU"]
[SourceTitle "playchess.com"]
[Source "ChessBase"]
[SourceQuality "1"]
[TimeControl "5400+30"]

1. e4 {[%emt 0:00:03]} d5 {[%emt 0:06:56]} 2. exd5 {[%emt 0:00:10]} Nf6 {[%emt 0:00:08]} 3. Bb5+ {[%emt 0:00:59]} Bd7 {[%emt 0:00:16]} 4. Bc4 {[%emt 0:00:10]} Bg4 {[%emt 0:01:19]} 5. f3 {[%emt 0:00:43]} Bf5 {[%emt 0:00:08]} 6. Nc3 {[%emt 0:00:27]} Nbd7 {[%emt 0:00:24]} 7. Nge2 {[%emt 0:00:29]} a6 {[%emt 0:00:27]} 8. d4 {[%emt 0:01:06]} Nb6 {[%emt 0:00:24]} 9. Bb3 {[%emt 0:00:54]} Nfxd5 {[%emt 0:02:13]} 10. Nxd5 {[%emt 0:00:27]} Nxd5 {[%emt 0:00:11]} 11. c3 {[%emt 0:00:43]} e6 {[%emt 0:00:12]} 12. O-O {[%emt 0:00:21]} Be7 {[%emt 0:01:03]} 13. Bc2 {[%emt 0:01:46]} Bxc2 {[%emt 0:03:47]} 14. Qxc2 {[%emt 0:00:09]} O-O {[%emt 0:00:14]} 15. Nf4 {[%emt 0:01:20]} Nxf4 {[%emt 0:04:55]} 16. Bxf4 {[%emt 0:00:10]} c5 {[%emt 0:00:13]} 17. Be3 {[%emt 0:07:28]} Qc7 {[%emt 0:01:32]} 18. dxc5 {[%emt 0:06:38]} Bxc5 {[%emt 0:00:10]} 19. Bxc5 {[%emt 0:00:06]} Qxc5+ {[%emt 0:00:05]} 20. Kh1 {[%emt 0:00:12]} Rfd8 {[%emt 0:02:05]} 21. Rad1 {[%emt 0:00:52]} g6 {[%emt 0:05:23]} 22. Rxd8+ {[%emt 0:07:05]} Rxd8 {[%emt 0:00:07]} 23. Rd1 {[%emt 0:00:10]} Rd5 {[%emt 0:10:32]} 24. Rxd5 {[%emt 0:13:32]} Qxd5 {[%emt 0:00:07]} 25. b3 {[%emt 0:03:00]} h5 {[%emt 0:00:39]} 26. Kg1 {[%emt 0:05:45]} Qe5 {[%emt 0:04:02]} 27. Qd2 {[%emt 0:03:39]} h4 {[%emt 0:05:44]} 28. Qd8+ {[%emt 0:04:32]} Kg7 {[%emt 0:00:15]} 29. Qd4 {[%emt 0:00:24]} Qxd4+ {[%emt 0:00:54]} 30. cxd4 {[%emt 0:00:12]} Kf6 {[%emt 0:00:26]} 31. Kf2 {[%emt 0:00:07]} g5 {[%emt 0:01:58]} 32. Ke3 {[%emt 0:03:22]} Ke7 {[%emt 0:06:47]} 33. Ke4 {[%emt 0:03:16]} Kd6 {[%emt 0:00:21]} 34. f4 {[%emt 0:08:11]} f5+ {[%emt 0:00:16]} 35. Ke3 {[%emt 0:00:10]} g4 {[%emt 0:00:23]} 36. g3 {[%emt 0:00:36]} hxg3 {[%emt 0:03:57]} 37. hxg3 {[%emt 0:00:08]} Kc6 {[%emt 0:11:06]} 38. Kd3 {[%emt 0:01:37]} a5 {[%emt 0:05:59]} 39. a4 {[%emt 0:08:36]} b5 {[%emt 0:13:01]} 40. axb5+ {[%emt 0:03:30]} Kxb5 {[%emt 0:00:06]} 41. Kc3 {[%emt 0:00:03]} Kb6 {[%emt 0:00:35]} 42. Kc4 {[%emt 0:00:07]} Kc6 {[%emt 0:00:32]} 43. Kd3 {[%emt 0:00:20]} Kb5 {[%emt 0:01:51]} 44. Kc3 {[%emt 0:00:08]} Kb6 {[%emt 0:00:16]} 45. Kc4 {[%emt 0:00:09]} Kc6 {[%emt 0:00:11]} 46. Kd3 {[%emt 0:00:07]} Kd5 {[%emt 0:01:54]} 47. Ke3 {[%emt 0:01:24]} 1/2-1/2

[Event "8th Montevideo Open 2025"]
[Site "Montevideo"]
[Date "2025.02.06"]
[Round "6.22"]
[White "Pascualvaca, Federico"]
[Black "Pos, Hans"]
[Result "1-0"]
[Annotator "NA RC"]
[ECO "B40"]
[WhiteElo "1794"]
[BlackElo "1950"]
[PlyCount "135"]
[EventDate "2025.02.01"]
[EventType "swiss"]
[EventCountry "URU"]
[SourceTitle "playchess.com"]
[Source "ChessBase"]
[SourceQuality "1"]
[TimeControl "5400+30"]

1. e4 {[%emt 0:00:06]} c5 {[%emt 0:00:06]} 2. Nf3 {[%emt 0:00:14]} e6 {[%emt 0:00:14]} 3. d4 {[%emt 0:00:26]} cxd4 {[%emt 0:00:03]} 4. Nxd4 {[%emt 0:00:09]} Bc5 {[%emt 0:00:10]} 5. Nb3 {[%emt 0:04:45]} Bb6 {[%emt 0:00:02]} 6. Nc3 {[%emt 0:01:40]} a6 {[%emt 0:00:02]} 7. Qf3 {[%emt 0:01:32]} Nc6 {[%emt 0:00:44]} 8. Bd3 {[%emt 0:02:34]} Qf6 {[%emt 0:03:55]} 9. Qxf6 {[%emt 0:02:31]} Nxf6 {[%emt 0:00:08]} 10. O-O {[%emt 0:01:35]} O-O {[%emt 0:01:31]} 11. h3 {[%emt 0:02:49]} Ne5 {[%emt 0:04:08]} 12. Be2 {[%emt 0:02:44]} d5 {[%emt 0:01:32]} 13. exd5 {[%emt 0:02:16]} Nxd5 {[%emt 0:01:07]} 14. Nxd5 {[%emt 0:00:54]} exd5 {[%emt 0:00:02]} 15. Rd1 {[%emt 0:01:47]} Be6 {[%emt 0:02:48]} 16. Nd4 {[%emt 0:02:22]} Rac8 {[%emt 0:01:00]} 17. c3 {[%emt 0:01:45]} h6 {[%emt 0:10:35]} 18. Be3 {[%emt 0:04:58]} Bxd4 {[%emt 0:08:34]} 19. Bxd4 {[%emt 0:01:35]} Nc6 {[%emt 0:00:03]} 20. Bf3 {[%emt 0:05:57]} Ne7 {[%emt 0:16:25]} 21. Be5 {[%emt 0:02:27]} Rfd8 {[%emt 0:00:44]} 22. Rd2 {[%emt 0:01:46]} Rd7 {[%emt 0:03:57]} 23. Rad1 {[%emt 0:02:08]} f6 {[%emt 0:00:27]} 24. Bh2 {[%emt 0:05:46]} b5 {[%emt 0:02:40]} 25. Re2 {[%emt 0:03:09]} Kf7 {[%emt 0:00:45]} 26. Rde1 {[%emt 0:02:32]} Rc6 {[%emt 0:00:01]} 27. b3 {[%emt 0:02:41]} Rb6 {[%emt 0:01:50]} 28. Bf4 {[%emt 0:03:48]} Bf5 {[%emt 0:10:07]} 29. Be3 {[%emt 0:05:34]} Re6 {[%emt 0:00:28]} 30. Bc5 {[%emt 0:04:30]} Rxe2 {[%emt 0:01:15]} 31. Rxe2 {[%emt 0:01:18]} Be6 {[%emt 0:01:18]} 32. b4 {[%emt 0:03:16]} g6 {[%emt 0:01:00]} 33. a4 {[%emt 0:01:18]} Nf5 {[%emt 0:01:30]} 34. axb5 {[%emt 0:01:14]} axb5 {[%emt 0:00:07]} 35. Rd2 {[%emt 0:01:11]} h5 {[%emt 0:02:05]} 36. Be2 {[%emt 0:01:07]} Rb7 {[%emt 0:01:12]} 37. Bf3 {[%emt 0:01:04]} Rd7 {[%emt 0:00:05]} 38. Be2 {[%emt 0:00:50]} Rb7 {[%emt 0:00:02]} 39. Bd3 {[%emt 0:01:10]} Ng7 {[%emt 0:01:34]} 40. Ra2 {[%emt 0:00:43]} d4 {[%emt 0:07:39]} 41. Ra8 {[%emt 0:00:48]} Bc4 {[%emt 0:01:20]} 42. Bxc4+ {[%emt 0:02:24]} bxc4 {[%emt 0:00:03]} 43. Rf8+ {[%emt 0:00:46]} Ke6 {[%emt 0:00:08]} 44. Bxd4 {[%emt 0:00:11]} Rf7 {[%emt 0:01:47]} 45. Rc8 {[%emt 0:00:49]} Nf5 {[%emt 0:02:38]} 46. Rxc4 {[%emt 0:00:41]} Rd7 {[%emt 0:01:15]} 47. Rc6+ {[%emt 0:00:47]} Rd6 {[%emt 0:00:07]} 48. Rxd6+ {[%emt 0:01:53]} Nxd6 {[%emt 0:00:02]} 49. Bc5 {[%emt 0:01:14]} Nb5 {[%emt 0:01:37]} 50. c4 {[%emt 0:00:32]} Na3 {[%emt 0:00:01]} 51. b5 {[%emt 0:00:56]} Nxc4 {[%emt 0:00:06]} 52. f4 {[%emt 0:05:19]} Kd5 {[%emt 0:01:26]} 53. Bf2 {[%emt 0:01:50]} Nd6 {[%emt 0:02:07]} 54. b6 {[%emt 0:00:36]} Kc6 {[%emt 0:00:01]} 55. Bd4 {[%emt 0:01:51]} f5 {[%emt 0:02:55]} 56. Kf2 {[%emt 0:00:36]} h4 {[%emt 0:01:00]} 57. Kf3 {[%emt 0:00:53]} Ne4 {[%emt 0:01:03]} 58. Ke3 {[%emt 0:00:48]} Nd6 {[%emt 0:00:58]} 59. Kd3 {[%emt 0:00:41]} Kd5 {[%emt 0:00:47]} 60. Bf2 {[%emt 0:00:33]} Kc6 {[%emt 0:00:18]} 61. Kd4 {[%emt 0:01:05]} Kxb6 {[%emt 0:01:50]} 62. Ke5+ {[%emt 0:00:35]} Kc7 {[%emt 0:00:03]} 63. Ke6 {[%emt 0:00:54]} Ne4 {[%emt 0:00:39]} 64. Bxh4 {[%emt 0:00:19]} Nc5+ {[%emt 0:00:02]} 65. Kf6 {[%emt 0:00:32]} Kd7 {[%emt 0:00:02]} 66. Kxg6 {[%emt 0:00:36]} Ke6 {[%emt 0:00:01]} 67. Bf2 {[%emt 0:01:22]} Ne4 {[%emt 0:01:16]} 68. Be1 {[%emt 0:00:27]} 1-0

[Event "8th Montevideo Open 2025"]
[Site "Montevideo"]
[Date "2025.02.06"]
[Round "6.23"]
[White "Esteve, Federico"]
[Black "Martinez Tagliafico, Sergio"]
[Result "1-0"]
[Annotator "NA RC"]
[ECO "D85"]
[WhiteElo "1946"]
[BlackElo "1831"]
[PlyCount "121"]
[EventDate "2025.02.01"]
[EventType "swiss"]
[EventCountry "URU"]
[SourceTitle "playchess.com"]
[Source "ChessBase"]
[SourceQuality "1"]
[TimeControl "5400+30"]

1. d4 {[%emt 1:31:00]} Nf6 {[%emt 1:31:00]} 2. c4 {[%emt 0:00:30]} g6 {[%emt 0:00:30]} 3. Nc3 {[%emt 0:00:30]} d5 {[%emt 0:00:30]} 4. cxd5 {[%emt 0:00:30]} Nxd5 {[%emt 0:00:30]} 5. e4 {[%emt 0:00:30]} Nxc3 {[%emt 0:00:30]} 6. bxc3 {[%emt 0:00:30]} Bg7 {[%emt 0:00:30]} 7. Nf3 {[%emt 0:00:30]} c5 {[%emt 0:00:30]} 8. Bb5+ {[%emt 0:00:30]} Bd7 {[%emt 0:00:30]} 9. Be2 {[%emt 0:00:30]} O-O {[%emt 0:00:30]} 10. O-O {[%emt 0:00:30]} cxd4 {[%emt 0:00:30]} 11. cxd4 {[%emt 0:00:30]} Nc6 {[%emt 0:00:30]} 12. h3 {[%emt 0:00:30]} Rc8 {[%emt 0:00:30]} 13. Rb1 {[%emt 0:00:30]} b6 {[%emt 0:00:30]} 14. Ba6 {[%emt 0:00:30]} Ra8 {[%emt 0:00:30]} 15. Be2 {[%emt 0:00:30]} Qc7 {[%emt 0:00:30]} 16. Be3 {[%emt 0:00:30]} Na5 {[%emt 0:00:30]} 17. Rc1 {[%emt 0:00:30]} Qb7 {[%emt 0:00:30]} 18. d5 {[%emt 0:00:30]} Rac8 {[%emt 0:00:30]} 19. Qd2 {[%emt 0:00:30]} Rxc1 {[%emt 0:00:30]} 20. Rxc1 {[%emt 0:00:30]} Rc8 {[%emt 0:00:30]} 21. Bd4 {[%emt 0:00:30]} Rxc1+ {[%emt 0:00:30]} 22. Qxc1 {[%emt 0:00:30]} Qc8 {[%emt 0:00:30]} 23. Qxc8+ {[%emt 0:00:30]} Bxc8 {[%emt 0:00:30]} 24. Bxg7 {[%emt 0:00:30]} Kxg7 {[%emt 0:00:30]} 25. Nd4 {[%emt 0:00:30]} Bd7 {[%emt 0:00:30]} 26. f4 {[%emt 0:00:30]} Kf8 {[%emt 0:00:30]} 27. Kf2 {[%emt 0:00:30]} Ke8 {[%emt 0:00:30]} 28. Ba6 {[%emt 0:00:30]} Kd8 {[%emt 0:00:30]} 29. Nb5 {[%emt 0:00:30]} Bxb5 {[%emt 0:00:30]} 30. Bxb5 {[%emt 0:00:30]} Nb7 {[%emt 0:00:30]} 31. Ke3 {[%emt 0:00:30]} Nc5 {[%emt 0:00:30]} 32. Kd4 {[%emt 0:00:30]} Nd7 {[%emt 0:00:30]} 33. Be2 {[%emt 0:00:30]} Kc7 {[%emt 0:00:30]} 34. e5 {[%emt 0:00:30]} f6 {[%emt 0:00:30]} 35. Bd3 {[%emt 0:00:30]} Nc5 {[%emt 0:00:30]} 36. Bc2 {[%emt 0:00:30]} Nd7 {[%emt 0:00:30]} 37. g4 {[%emt 0:00:30]} Nf8 {[%emt 0:00:30]} 38. h4 {[%emt 0:00:30]} h6 {[%emt 0:00:30]} 39. e6 {[%emt 0:00:30]} Kd6 {[%emt 0:00:30]} 40. Be4 {[%emt 0:00:30]} a6 {[%emt 0:00:30]} 41. Bd3 {[%emt 0:00:30]} g5 {[%emt 0:00:30]} 42. fxg5 {[%emt 0:00:30]} fxg5 {[%emt 0:00:30]} 43. h5 {[%emt 0:00:30]} Kc7 {[%emt 0:00:30]} 44. Ke5 {[%emt 0:00:30]} b5 {[%emt 0:00:30]} 45. Be4 {[%emt 0:00:30]} b4 {[%emt 0:00:30]} 46. Bd3 {[%emt 0:00:30]} a5 {[%emt 0:00:30]} 47. Bc2 {[%emt 0:00:30]} Kd8 {[%emt 0:00:30]} 48. d6 {[%emt 0:00:30]} a4 {[%emt 0:00:30]} 49. Bxa4 {[%emt 0:00:30]} Nh7 {[%emt 0:00:30]} 50. Bc2 {[%emt 0:00:30]} Nf6 {[%emt 0:00:30]} 51. Bf5 {[%emt 0:00:30]} Ne8 {[%emt 0:00:30]} 52. d7 {[%emt 0:00:30]} Nf6 {[%emt 0:00:30]} 53. Kd4 {[%emt 0:00:30]} Kc7 {[%emt 0:00:30]} 54. Kc5 {[%emt 0:00:30]} Kd8 {[%emt 0:00:30]} 55. Kxb4 {[%emt 0:00:30]} Nd5+ {[%emt 0:00:30]} 56. Kc4 {[%emt 0:00:30]} Ne3+ {[%emt 0:00:30]} 57. Kd4 {[%emt 0:00:30]} Nd1 {[%emt 0:00:30]} 58. a4 {[%emt 0:00:30]} Nb2 {[%emt 0:00:30]} 59. a5 {[%emt 0:00:30]} Kc7 {[%emt 0:00:30]} 60. Bc2 {[%emt 0:00:30]} Kd8 {[%emt 0:00:30]} 61. Kc3 {[%emt 0:00:30]} 1-0